bitfinex-derivatives/quotes_SOLF0:USTF0_20250415
["timestamp","ask_amount","ask_price","bid_price","bid_amount"]
[1744676611232,8.44819192,128.11,128.07,30.74]
[1744676611633,7.8084,128.08,128.07,30.74]
[1744676612839,7.8088,128.07,128.06,30.79124284]
[1744676613334,0.06028309,128.09,128.06,30.79124284]
[1744676614240,0.06028309,128.09,128.08,7.8082]
[1744676615235,7.8057,128.13,128.07,8.44819192]
[1744676615439,7.8057,128.13,128.09,8.44819192]
[1744676615737,7.8057,128.13,128.1,30.74]
[1744676616140,7.8057,128.13,128.1,38.5467]
[1744676616335,7.86005986,128.13,128.1,38.59665594]
[1744676616940,7.8059,128.12,128.1,30.78995594]
[1744676617136,0.05435986,128.13,128.1,30.78995594]
[1744676617637,7.8058,128.12,128.1,30.78995594]
[1744676618138,7.85955986,128.13,128.1,30.78995594]
[1744676618341,0.05435986,128.13,128.1,30.78995594]
[1744676618845,0.05435986,128.13,128.11,8.44819192]
[1744676619441,0.05435986,128.13,128.11,16.25419192]
[1744676620543,0.05435986,128.13,128.11,8.44819192]
[1744676620939,7.85955986,128.13,128.11,8.44819192]
[1744676621339,0.05435986,128.13,128.11,8.44819192]
[1744676621639,0.05435986,128.13,128.11,16.86319192]
[1744676622546,0.05435986,128.13,128.12,7.8058]
[1744676622840,8.0037,128.21,128.11,16.86319192]
[1744676623041,8.0037,128.21,128.15,8.44819192]
[1744676623240,7.8019,128.19,128.16,38.5233]
[1744676623637,7.8012,128.2,128.17,7.8027]
[1744676623844,0.05764911,128.19,128.17,7.8027]
[1744676624343,0.05764911,128.19,128.16,30.77308125]
[1744676624743,7.8021,128.18,128.16,30.77308125]
[1744676625646,7.85934911,128.19,128.16,30.77308125]
[1744676625839,7.85934911,128.19,128.16,38.57588125]
[1744676626143,0.05764911,128.19,128.16,38.57588125]
[1744676626637,0.05764911,128.19,128.17,8.44819192]
[1744676627039,0.05764911,128.19,128.18,7.8021]
[1744676627244,7.7991,128.23,128.17,17.01609192]
[1744676627443,7.7991,128.23,128.19,8.44819192]
[1744676627648,7.7991,128.23,128.2,31.0]
[1744676627946,7.7991,128.23,128.2,38.8008]
[1744676628342,0.05105585,128.23,128.2,31.05018469]
[1744676628546,0.05105585,128.23,128.21,8.44819192]
[1744676628750,0.05105585,128.23,128.21,570.16819192]
[1744676629049,175.84203616,128.28,128.24,7.7979]
[1744676629248,175.84203616,128.28,128.25,31.0]
[1744676629750,7.7966,128.28,128.25,31.0]
[1744676629947,184.29022808,128.3,128.25,31.0]
[1744676630149,7.85526853,128.28,128.25,31.05993862]
[1744676630847,7.7967,128.27,128.25,31.05993862]
[1744676632151,7.7972,128.26,128.25,31.05993862]
[1744676632541,7.7972,128.26,128.25,0.05993862]
[1744676632747,13.48236533,128.26,128.2,30.98]
[1744676632943,8.2989,128.25,128.2,30.98]
[1744676633750,0.05329432,128.24,128.21,0.05070978]
[1744676633951,7.7995,128.23,128.21,0.05070978]
[1744676634248,0.05329432,128.24,128.21,0.05070978]
[1744676634555,7.7996,128.23,128.21,0.05070978]
[1744676635051,7.7997,128.22,128.21,0.05070978]
[1744676637651,7.7993,128.23,128.21,0.05070978]
[1744676637852,0.05329432,128.24,128.2,30.98]
[1744676638250,0.05329432,128.24,128.21,7.7998]
[1744676638853,0.05329432,128.24,128.21,7.8585933]
[1744676640250,0.05329432,128.24,128.21,0.0587933]
[1744676640851,4.36019432,128.24,128.21,0.0587933]
[1744676641650,7.7994,128.23,128.21,0.0587933]
[1744676642556,7.7997,128.22,128.21,0.0587933]
[1744676646856,7.7997,128.22,128.21,9.33e-05]
[1744676647062,52.26236533,128.22,128.13,30.98]
[1744676647363,13.48236533,128.19,128.13,30.98]
[1744676647561,13.48236533,128.21,128.13,30.98]
[1744676648063,0.05404891,128.18,128.16,0.05592213]
[1744676649259,7.8027,128.17,128.16,0.05592213]
[1744676650962,0.05404891,128.18,128.13,30.98]
[1744676651165,0.05404891,128.18,128.13,39.41923557]
[1744676651568,8.43923557,128.17,128.13,30.98]
[1744676652066,7.8045,128.14,128.13,30.98]
[1744676653266,7.85472888,128.15,128.13,30.98]
[1744676653666,0.05052888,128.15,128.13,30.98]
[1744676655361,7.85482888,128.15,128.13,30.98]
[1744676655562,0.05052888,128.15,128.13,30.98]
[1744676656870,7.85472888,128.15,128.13,30.98]
[1744676658470,7.8045,128.14,128.13,30.98]
[1744676658971,8.48976445,128.15,128.12,0.05000798]
[1744676659173,7.8051,128.13,128.12,0.05000798]
[1744676660469,8.48976445,128.15,128.12,0.05000798]
[1744676662172,7.8051,128.13,128.12,0.05000798]
[1744676664471,7.85472888,128.15,128.12,7.85570798]
[1744676664672,0.05052888,128.15,128.12,0.05000798]
[1744676664974,7.805,128.14,128.12,0.05000798]
[1744676665976,7.8051,128.13,128.12,0.05000798]
[1744676667678,7.8048,128.14,128.12,0.05000798]
[1744676670479,7.8051,128.13,128.12,0.05000798]
[1744676673282,7.8049,128.14,128.12,0.05000798]
[1744676673585,0.05052888,128.15,128.13,30.72]
[1744676673786,0.05052888,128.15,128.13,38.5249]
[1744676674284,0.05052888,128.15,128.13,30.72]
[1744676674484,0.05052888,128.15,128.14,7.8045]
[1744676674682,4.0062,128.21,128.13,39.15923557]
[1744676674883,4.0062,128.21,128.15,16.24273557]
[1744676675084,4.0062,128.21,128.16,30.72]
[1744676675784,0.05141884,128.2,128.17,0.05358937]
[1744676676181,7.8021,128.18,128.17,0.05358937]
[1744676677091,7.8018,128.19,128.17,0.05358937]
[1744676677492,0.05141884,128.2,128.17,0.05358937]
[1744676677493,0.05141884,128.2,128.17,8.49282494]
[1744676677687,0.05141884,128.2,128.19,7.8015]
[1744676677887,0.05141884,128.2,128.19,38.5215]
[1744676678587,0.05141884,128.2,128.19,46.96073557]
[1744676678789,7.7986,128.24,128.21,7.8002]
[1744676679091,12.46063557,128.26,128.19,39.15923557]
[1744676679294,12.46063557,128.26,128.19,30.72]
[1744676679790,7.7994,128.23,128.19,38.521]
[1744676679990,7.7994,128.23,128.21,0.05593273]
[1744676680290,7.7997,128.22,128.21,0.05593273]
[1744676682289,7.8024,128.18,128.16,592.44]
[1744676682792,7.8024,128.18,128.16,30.72]
[1744676683192,3.9817,128.21,128.16,30.72]
[1744676683389,7.8027,128.17,128.16,30.72]
[1744676683586,8.43923557,128.18,128.15,0.05973176]
[1744676683789,7.804,128.15,128.12,38.5257]
[1744676684191,7.85407227,128.15,128.12,38.57734631]
[1744676686192,0.05007227,128.15,128.13,7.805]
[1744676686399,0.05007227,128.15,128.13,8.43923557]
[1744676686894,0.05007227,128.15,128.14,7.8045]
[1744676688699,3.9817,128.21,128.17,7.8027]
[1744676688897,3.9817,128.21,128.17,38.3427]
[1744676689592,4.1799,128.23,128.17,38.97923557]
[1744676689798,0.04984077,128.21,128.19,8.49468673]
[1744676690001,0.04984077,128.21,128.2,30.54]
[1744676695003,7.85014077,128.21,128.2,30.54]
[1744676695606,7.8009,128.2,128.19,0.05545116]
[1744676695999,7.85024077,128.21,128.19,0.05545116]
[1744676696201,0.04984077,128.21,128.19,30.59545116]
[1744676696608,7.85054077,128.21,128.19,30.59545116]
[1744676696806,0.04984077,128.21,128.19,30.59545116]
[1744676697205,7.8009,128.2,128.19,30.59545116]
[1744676697405,7.8009,128.2,128.19,0.05545116]
[1744676698003,7.8027,128.17,128.16,30.54]
[1744676699003,7.8033,128.16,128.15,0.05549575]
[1744676700604,0.05572762,128.18,128.13,30.54]
[1744676700904,0.05572762,128.18,128.13,38.97923557]
[1744676701108,0.05572762,128.18,128.15,8.43923557]
[1744676701403,0.05572762,128.18,128.16,30.54]
[1744676701605,0.05572762,128.18,128.16,30.59361389]
[1744676701804,7.8027,128.17,128.16,30.59361389]
[1744676702606,7.8027,128.17,128.16,0.05361389]
[1744676704105,7.85812762,128.18,128.16,30.59361389]
[1744676704609,0.05572762,128.18,128.16,30.59361389]
[1744676705013,0.05572762,128.18,128.16,39.03284946]
[1744676705606,0.05572762,128.18,128.16,30.59361389]
[1744676706312,0.05572762,128.18,128.16,0.05361389]
[1744676706610,8.49496319,128.18,128.11,30.54]
[1744676706809,8.43923557,128.16,128.11,30.54]
[1744676707311,7.8046,128.14,128.11,38.3463]
[1744676707511,8.43923557,128.16,128.11,38.3463]
[1744676707706,34.7667,128.19,128.11,38.3463]
[1744676707707,0.05910736,128.14,128.11,39.01256396]
[1744676708204,0.05910736,128.14,128.13,7.8051]
[1744676711613,4.2267,128.19,128.13,7.8051]
[1744676711614,4.0363,128.21,128.16,7.803]
[1744676711814,4.0363,128.21,128.16,30.54]
[1744676712418,4.0363,128.21,128.16,38.343]
[1744676712618,7.8015,128.19,128.16,38.343]
[1744676712816,7.8015,128.19,128.17,0.05933986]
[1744676713015,0.05329728,128.2,128.17,0.05933986]
[1744676713320,7.8021,128.18,128.17,0.05933986]
[1744676713712,8.49253285,128.2,128.17,0.05933986]
[1744676713913,7.8015,128.19,128.17,0.05933986]
[1744676714407,0.05329728,128.2,128.17,0.05933986]
[1744676715219,7.802,128.19,128.17,0.05933986]
[1744676715419,0.05329728,128.2,128.17,0.05933986]
[1744676715615,7.85459728,128.2,128.17,0.05933986]
[1744676715821,0.05329728,128.2,128.17,0.05933986]
[1744676716322,7.8021,128.18,128.17,0.05933986]
[1744676716820,0.05329728,128.2,128.17,0.05933986]
[1744676718615,0.05329728,128.2,128.18,8.43923557]
[1744676718822,0.05329728,128.2,128.19,7.8015]
[1744676719025,4.316,128.25,128.18,12.57523557]
[1744676719226,4.316,128.25,128.2,8.43923557]
[1744676719426,7.7988,128.24,128.21,7.7999]
[1744676720214,7.85012045,128.24,128.21,7.8536061]
[1744676724724,0.05132045,128.24,128.22,31.0]
[1744676724931,0.05132045,128.24,128.22,39.43923557]
[1744676725133,0.05132045,128.24,128.22,43.49523557]
[1744676725929,0.05132045,128.24,128.22,51.29443557]
[1744676726230,0.05132045,128.24,128.22,31.0]
[1744676726531,0.05132045,128.24,128.22,39.43923557]
[1744676726829,0.05132045,128.24,128.23,7.7991]
[1744676728927,0.05132045,128.24,128.22,31.0]
[1744676729629,7.85012045,128.24,128.22,31.0]
[1744676730026,0.05132045,128.24,128.22,31.0]
[1744676730929,0.05132045,128.24,128.23,7.7991]
[1744676731524,7.7955,128.29,128.26,7.7969]
[1744676732329,7.7961,128.28,128.26,7.7969]
[1744676732725,7.84700322,128.28,128.26,7.85036101]
[1744676733626,0.05090322,128.28,128.27,7.7966]
[1744676734327,0.05090322,128.28,128.26,7.85046101]
[1744676737629,0.05090322,128.28,128.27,7.7966]
[1744676739133,0.05090322,128.28,128.26,7.85046101]
[1744676739334,7.84700322,128.28,128.26,7.85046101]
[1744676740033,0.05090322,128.28,128.26,7.85046101]
[1744676740631,7.84690322,128.28,128.26,7.85046101]
[1744676741034,0.05090322,128.28,128.27,7.7966]
[1744676743527,15.5806,128.38,128.3,7.7948]
[1744676743729,15.5806,128.38,128.26,0.05346101]
[1744676743730,4.1131,128.37,128.31,39.41923557]
[1744676744131,7.7922,128.35,128.31,39.41923557]
[1744676744335,7.7922,128.35,128.32,7.7936]
[1744676744632,7.7932,128.33,128.31,30.98]
[1744676744821,7.7932,128.33,128.32,0.05336782]
[1744676745331,0.0542031,128.35,128.32,0.05336782]
[1744676745632,7.8466031,128.35,128.32,0.05336782]
[1744676745833,7.8466031,128.35,128.32,7.84666782]
[1744676746134,0.0542031,128.35,128.32,7.84666782]
[1744676747237,7.7925,128.34,128.32,0.05336782]
[1744676748931,7.793,128.33,128.32,0.05336782]
[1744676750636,7.7926,128.34,128.32,0.05336782]
[1744676750833,0.0542031,128.35,128.32,0.05336782]
[1744676751034,7.7924,128.34,128.32,0.05336782]
[1744676751634,7.793,128.33,128.32,0.05336782]
[1744676752035,0.0542031,128.35,128.32,7.84686782]
[1744676752335,0.0542031,128.35,128.32,0.05336782]
[1744676752734,0.0542031,128.35,128.33,7.793]
[1744676753132,0.0542031,128.35,128.32,0.05336782]
[1744676753336,0.0542031,128.35,128.34,7.7924]
[1744676753530,0.0542031,128.35,128.34,38.5324]
[1744676754931,0.0542031,128.35,128.34,30.74]
[1744676755435,0.0542031,128.35,128.34,38.5324]
[1744676756337,4.1348,128.42,128.38,7.7896]
[1744676756537,7.7884,128.41,128.38,7.7896]
[1744676757343,7.7884,128.41,128.38,7.84555252]
[1744676757344,7.84265351,128.41,128.38,7.84555252]
[1744676757639,7.84265351,128.41,128.38,0.05595252]
[1744676758234,7.84265351,128.41,128.38,7.84555252]
[1744676758835,7.7892,128.4,128.38,0.05595252]
[1744676759741,7.84265351,128.41,128.38,7.84585252]
[1744676760439,0.05425351,128.41,128.38,0.05595252]
[1744676760938,0.05425351,128.41,128.38,8.49518809]
[1744676761539,8.43923557,128.49,128.4,8.43923557]
[1744676761738,213.38729612,128.51,128.47,8.43923557]
[1744676761945,213.38729612,128.51,128.48,30.74]
[1744676762340,221.16949612,128.51,128.48,30.74]
[1744676762539,213.38729612,128.51,128.45,39.17923557]
[1744676762735,213.44702168,128.51,128.48,0.05223614]
[1744676763334,213.44702168,128.51,128.48,30.77223614]
[1744676763539,221.22912168,128.51,128.48,30.77223614]
[1744676763943,213.44702168,128.51,128.48,30.77223614]
[1744676764243,0.05972556,128.51,128.48,30.77223614]
[1744676764945,7.84182556,128.51,128.48,30.77223614]
[1744676765144,0.05972556,128.51,128.48,30.77223614]
[1744676765536,7.783,128.5,128.48,0.05223614]
[1744676765738,8.49896113,128.51,128.48,0.05223614]
[1744676765942,8.43923557,128.47,128.42,32.02]
[1744676766244,8.43923557,128.47,128.39,32.02]
[1744676766446,7.7859,128.45,128.39,32.02]
[1744676766744,8.43923557,128.47,128.39,32.02]
[1744676766945,7.8460971,128.44,128.42,0.05796742]
[1744676767442,7.7869,128.43,128.42,0.05796742]
[1744676768445,0.0593971,128.44,128.39,32.02]
[1744676768446,7.7887,128.41,128.39,32.02]
[1744676768646,4.165,128.44,128.39,32.02]
[1744676769545,0.05466033,128.43,128.4,0.05538456]
[1744676769744,7.7881,128.41,128.4,0.05538456]
[1744676770445,7.7876,128.42,128.4,0.05538456]
[1744676771646,7.7881,128.41,128.4,0.05538456]
[1744676771847,0.05466033,128.43,128.4,0.05538456]
[1744676772237,8.4938959,128.43,128.4,0.05538456]
[1744676772443,7.7881,128.41,128.4,0.05538456]
[1744676774650,8.43923557,128.41,128.36,32.04]
[1744676774847,8.43923557,128.41,128.36,39.8307]
[1744676775545,0.05469302,128.4,128.37,0.05656124]
[1744676776342,0.05469302,128.4,128.37,7.84676124]
[1744676776945,0.05469302,128.4,128.38,8.43923557]
[1744676777547,0.05469302,128.4,128.39,7.7893]
[1744676777949,4.1467,128.48,128.38,8.43923557]
[1744676778151,4.1467,128.48,128.41,8.43923557]
[1744676778447,4.1467,128.48,128.42,32.04]
[1744676778752,4.1467,128.48,128.43,8.43923557]
[1744676778948,0.05059275,128.47,128.44,0.05150499]
[1744676779251,0.05059275,128.47,128.45,8.43923557]
[1744676779444,0.05059275,128.47,128.46,39.8251]
[1744676781648,3.9621,128.53,128.49,7.7829]
[1744676781848,3.9621,128.53,128.47,8.43923557]
[1744676782653,0.05153471,128.51,128.49,0.0580203]
[1744676782952,0.05153471,128.51,128.5,32.02]
[1744676785958,7.83363471,128.51,128.5,32.02]
[1744676786153,0.05153471,128.51,128.5,32.02]
[1744676787358,0.05153471,128.51,128.49,0.0580203]
[1744676787858,7.7827,128.5,128.49,0.0580203]
[1744676789962,7.83373471,128.51,128.49,0.0580203]
[1744676791264,7.7827,128.5,128.49,0.0580203]
[1744676794474,8.43923557,128.5,128.44,32.02]
[1744676794679,8.2118,128.49,128.44,32.02]
[1744676794869,8.43923557,128.48,128.44,32.02]
[1744676795176,40.45923557,128.52,128.45,8.43923557]
[1744676795474,40.45923557,128.52,128.46,7.7848]
[1744676795675,7.7838,128.49,128.47,0.0593644]
[1744676796374,0.05033445,128.5,128.48,39.7636]
[1744676797076,0.05033445,128.5,128.49,7.7833]
[1744676798371,12.5237,128.57,128.52,7.7814]
[1744676798572,12.5237,128.57,128.52,39.7614]
[1744676798973,12.5237,128.57,128.52,31.98]
[1744676799177,12.5237,128.57,128.53,7.7808]
[1744676799379,12.5237,128.57,128.52,31.98]
[1744676799574,0.05136469,128.56,128.54,0.05281922]
[1744676799978,7.7796,128.55,128.54,0.05281922]
[1744676801379,8.49060026,128.56,128.49,31.98]
[1744676801579,8.43923557,128.56,128.49,31.98]
[1744676801773,7.7812,128.53,128.49,31.98]
[1744676802071,8.43923557,128.56,128.49,31.98]
[1744676802268,12.5237,128.57,128.49,31.98]
[1744676802472,7.83193314,128.54,128.51,0.05683999]
[1744676803078,7.83193314,128.54,128.51,7.83863999]
[1744676803280,7.7809,128.53,128.51,0.05683999]
[1744676804579,7.7815,128.52,128.51,0.05683999]
[1744676806181,7.7812,128.53,128.51,0.05683999]
[1744676806672,7.7815,128.52,128.51,0.05683999]
[1744676806874,0.05113314,128.54,128.51,0.05683999]
[1744676807176,7.7812,128.53,128.51,0.05683999]
[1744676807783,7.83163314,128.54,128.51,0.05683999]
[1744676809084,7.83163314,128.54,128.51,7.83863999]
[1744676809678,0.05113314,128.54,128.51,0.05683999]
[1744676809884,0.05113314,128.54,128.51,8.49607556]
[1744676810582,0.05113314,128.54,128.52,7.781]
[1744676810783,0.05113314,128.54,128.53,31.96]
[1744676811282,0.05113314,128.54,128.53,39.7409]
[1744676813183,0.05113314,128.54,128.53,31.96]
[1744676815985,7.83143314,128.54,128.53,31.96]
[1744676816589,0.05113314,128.54,128.53,31.96]
[1744676818889,0.05113314,128.54,128.53,39.7409]
[1744676819388,0.05113314,128.54,128.53,31.96]
[1744676819589,7.83143314,128.54,128.53,31.96]
[1744676820485,7.7815,128.52,128.51,0.05683999]
[1744676820791,0.05113314,128.54,128.51,8.49607556]
[1744676821094,0.05113314,128.54,128.53,7.7809]
[1744676827792,0.05113314,128.54,128.51,0.05683999]
[1744676828088,0.05113314,128.54,128.53,8.43923557]
[1744676828291,12.4186,128.6,128.55,7.7791]
[1744676828593,12.4186,128.6,128.56,31.34]
[1744676829093,7.7779,128.58,128.56,31.34]
[1744676829392,7.8357781,128.58,128.56,31.38984698]
[1744676832490,0.0578781,128.58,128.56,31.38984698]
[1744676832995,0.0578781,128.58,128.57,7.7784]
[1744676834694,0.0578781,128.58,128.56,39.16874698]
[1744676835286,7.8359781,128.58,128.56,31.38984698]
[1744676835488,0.0578781,128.58,128.56,31.38984698]
[1744676835692,0.0578781,128.58,128.56,39.82908255]
[1744676835886,0.0578781,128.58,128.56,31.38984698]
[1744676836396,0.0578781,128.58,128.56,39.16864698]
[1744676839897,0.0578781,128.58,128.57,7.7784]
[1744676841394,4.2013,128.64,128.6,7.7762]
[1744676841588,7.7743,128.64,128.61,31.32]
[1744676842100,7.7743,128.64,128.61,39.0957]
[1744676842497,7.7751,128.63,128.61,31.3765926]
[1744676843300,0.05372384,128.64,128.61,39.1522926]
[1744676843499,0.05372384,128.64,128.61,31.3765926]
[1744676843896,0.05372384,128.64,128.61,39.81582817]
[1744676844296,0.05372384,128.64,128.63,7.7748]
[1744676845001,0.05372384,128.64,128.63,16.21403557]
[1744676845600,0.05372384,128.64,128.62,7.7752]
[1744676845809,8.49295941,128.64,128.61,31.3765926]
[1744676846198,7.7753,128.63,128.61,31.3765926]
[1744676846500,8.49295941,128.64,128.61,0.0565926]
[1744676846695,7.7754,128.62,128.61,0.0565926]
[1744676854910,7.7772,128.59,128.58,31.32]
[1744676855603,7.7793,128.56,128.54,31.16]
[1744676855909,8.43923557,128.58,128.54,31.16]
[1744676856110,0.0594653,128.56,128.54,31.21682377]
[1744676857805,0.0594653,128.56,128.54,39.65605934]
[1744676858199,0.0594653,128.56,128.55,7.7796]
[1744676858915,4.2281,128.63,128.54,39.65605934]
[1744676859116,4.2281,128.63,128.57,8.43923557]
[1744676859409,4.2281,128.63,128.58,31.16]
[1744676859606,8.43923557,128.59,128.43,15.5737]
[1744676859811,7.7794,128.56,128.52,7.7812]
[1744676860010,7.7794,128.56,128.53,0.05190656]
[1744676860206,0.05758266,128.55,128.53,0.05190656]
[1744676860407,12.87101823,128.55,128.53,0.05190656]
[1744676860810,7.7803,128.54,128.53,0.05190656]
[1744676861213,7.7803,128.54,128.53,6.56e-06]
[1744676861407,12.87101823,128.55,128.5,31.16]
[1744676861607,8.43923557,128.53,128.5,31.16]
[1744676862004,8.43923557,128.53,128.47,31.18]
[1744676862209,8.43923557,128.49,128.41,12.59443557]
[1744676862409,7.7857,128.45,128.44,0.04933643]
[1744676862613,0.05647915,128.46,128.44,0.04933643]
[1744676863824,0.05647915,128.46,128.44,7.83553643]
[1744676864514,0.05647915,128.46,128.45,7.7857]
[1744676866116,0.05647915,128.46,128.44,7.83543643]
[1744676866316,0.05647915,128.46,128.44,0.04933643]
[1744676867225,0.05647915,128.46,128.45,7.7857]
[1744676868512,4.3179,128.54,128.45,567.84]
[1744676868817,4.3179,128.54,128.48,13.44200049]
[1744676869117,7.78,128.55,128.48,13.44200049]
[1744676869317,8.2464,128.57,128.48,13.44200049]
[1744676869518,0.05954341,128.54,128.53,7.7809]
[1744676869720,0.05954341,128.54,128.53,31.18]
[1744676874121,0.05954341,128.54,128.52,0.05636202]
[1744676874620,7.7809,128.53,128.52,0.05636202]
[1744676877018,7.84004341,128.54,128.52,0.05636202]
[1744676878223,0.05954341,128.54,128.52,0.05636202]
[1744676879318,7.7809,128.53,128.52,0.05636202]
[1744676880624,13.5015439,128.54,128.45,591.24]
[1744676880821,13.44200049,128.52,128.45,591.24]
[1744676881020,7.7831,128.5,128.46,7.7846]
[1744676881226,13.44200049,128.54,128.45,591.24]
[1744676881626,0.0568223,128.51,128.48,7.83484555]
[1744676882025,0.0568223,128.51,128.48,0.05124555]
[1744676882226,7.7832,128.5,128.48,0.05124555]
[1744676883426,0.0568223,128.51,128.48,0.05124555]
[1744676883725,7.8392223,128.51,128.48,0.05124555]
[1744676883925,0.0568223,128.51,128.48,0.05124555]
[1744676884232,7.7832,128.5,128.48,0.05124555]
[1744676884531,0.0568223,128.51,128.48,0.05124555]
[1744676885227,7.783,128.5,128.48,0.05124555]
[1744676885630,7.8393223,128.51,128.48,7.83514555]
[1744676886130,0.0568223,128.51,128.5,7.7827]
[1744676887030,8.2464,128.57,128.49,30.98]
[1744676887227,13.44200049,128.56,128.49,30.98]
[1744676888034,7.7809,128.53,128.51,0.05671217]
[1744676889135,7.840062,128.54,128.51,7.83851217]
[1744676891938,7.7809,128.53,128.51,0.05671217]
[1744676892132,0.059662,128.54,128.51,0.05671217]
[1744676892432,7.840262,128.54,128.51,0.05671217]
[1744676892637,7.840262,128.54,128.51,7.83841217]
[1744676892942,7.7809,128.53,128.51,0.05671217]
[1744676894437,7.840062,128.54,128.51,7.83831217]
[1744676894642,0.059662,128.54,128.51,0.05671217]
[1744676895643,0.059662,128.54,128.52,7.7809]
[1744676895841,0.059662,128.54,128.53,30.98]
[1744676898146,0.059662,128.54,128.53,38.7609]
[1744676898447,7.839962,128.54,128.53,30.98]
[1744676899451,0.059662,128.54,128.53,30.98]
[1744676900142,0.059662,128.54,128.53,38.7609]
[1744676900847,0.059662,128.54,128.53,30.98]
[1744676901349,7.839962,128.54,128.53,30.98]
[1744676901848,0.059662,128.54,128.53,30.98]
[1744676902043,0.059662,128.54,128.52,7.7813]
[1744676902250,0.059662,128.54,128.51,0.05671217]
[1744676903150,7.7809,128.53,128.51,7.83851217]
[1744676905051,7.840162,128.54,128.51,7.83851217]
[1744676905246,7.840162,128.54,128.52,7.7814]
[1744676906454,7.840162,128.54,128.51,7.83851217]
[1744676908255,7.781,128.53,128.51,7.83851217]
[1744676909059,7.840162,128.54,128.51,7.83851217]
[1744676909558,7.840162,128.54,128.52,7.7814]
[1744676909754,0.059662,128.54,128.52,8.39092615]
[1744676910450,0.059662,128.54,128.53,7.7809]
[1744676914352,12.54072615,128.63,128.53,15.9832]
[1744676914557,7.7762,128.61,128.56,8.39092615]
[1744676914755,4.1498,128.63,128.56,8.39092615]
[1744676915057,4.1498,128.63,128.58,7.7775]
[1744676915258,7.7763,128.61,128.59,30.96]
[1744676915459,8.39092615,128.61,128.59,0.05478275]
[1744676915959,7.7766,128.6,128.59,0.05478275]
[1744676916950,7.7762,128.61,128.59,30.71478275]
[1744676917356,0.05324946,128.62,128.59,30.71478275]
[1744676917952,7.7766,128.6,128.59,30.71478275]
[1744676924662,7.7762,128.61,128.59,30.71478275]
[1744676924966,0.05324946,128.62,128.59,30.71478275]
[1744676925168,0.05324946,128.62,128.61,7.776]
[1744676925565,0.05324946,128.62,128.59,30.71478275]
[1744676925765,7.82894946,128.62,128.59,38.49168275]
[1744676926070,0.05324946,128.62,128.59,38.49168275]
[1744676926266,0.05324946,128.62,128.59,30.71478275]
[1744676927270,7.82884946,128.62,128.6,7.7766]
[1744676927769,0.05324946,128.62,128.6,7.7766]
[1744676928168,0.05324946,128.62,128.59,30.71478275]
[1744676928368,7.7765,128.61,128.59,30.71478275]
[1744676929470,7.7765,128.61,128.59,38.49178275]
[1744676929672,7.82884946,128.62,128.59,38.49178275]
[1744676929871,0.05324946,128.62,128.59,30.71478275]
[1744676930668,0.05324946,128.62,128.6,7.7763]
[1744676932375,0.05324946,128.62,128.6,7.7765]
[1744676932576,0.05324946,128.62,128.59,30.71478275]
[1744676932875,7.82894946,128.62,128.59,38.49168275]
[1744676933077,0.05324946,128.62,128.59,30.71478275]
[1744676933475,7.82894946,128.62,128.59,38.49168275]
[1744676934170,0.05324946,128.62,128.6,7.7765]
[1744676934378,0.05324946,128.62,128.59,30.71478275]
[1744676934976,7.82894946,128.62,128.59,38.49158275]
[1744676937878,0.05324946,128.62,128.6,7.7764]
[1744676938477,0.05324946,128.62,128.61,7.776]
[1744676939579,0.05324946,128.62,128.6,7.7764]
[1744676940175,0.05324946,128.62,128.61,7.776]
[1744676942285,8.39092615,128.69,128.63,7.7748]
[1744676942578,8.39092615,128.69,128.63,38.4148]
[1744676942781,7.7735,128.66,128.63,38.4148]
[1744676942977,8.39092615,128.69,128.63,38.4148]
[1744676943381,0.05301999,128.67,128.65,0.05019237]
[1744676943777,7.7733,128.66,128.65,0.05019237]
[1744676944284,0.05301999,128.67,128.65,0.05019237]
[1744676944486,0.05301999,128.67,128.66,38.413]
[1744676944783,0.05301999,128.67,128.66,46.80392615]
[1744676945583,0.05301999,128.67,128.66,30.64]
[1744676945978,0.05301999,128.67,128.66,38.413]
[1744676946383,0.05301999,128.67,128.66,46.80392615]
[1744676947381,0.05301999,128.67,128.66,38.413]
[1744676947786,0.05301999,128.67,128.66,30.64]
[1744676948989,0.05301999,128.67,128.66,38.413]
[1744676949885,4.1696,128.74,128.66,39.03092615]
[1744676950082,4.3472,128.77,128.7,8.39092615]